fUST/lending_fUST_20251003
["ID","MTS","AMOUNT","RATE_DAILY","PERIOD"]
[388896436,1759481433291,-520.0,0.00018038,3]
[388896438,1759481433300,-500.0,0.00018038,2]
[388896440,1759481433309,-500.0,0.00018038,2]
[388896442,1759481433319,-810.3,0.00018038,2]
[388896444,1759481433328,-500.0,0.00018038,2]
[388896446,1759481433338,-1457.44,0.00018038,2]
[388896448,1759481433349,-500.0,0.00018038,2]
[388896450,1759481433359,-500.0,0.00018038,2]
[388896452,1759481433369,-557.51,0.00018038,2]
[388896454,1759481433379,-500.0,0.00018038,2]
[388896456,1759481433388,-500.0,0.00018038,2]
[388896458,1759481433398,-500.0,0.00018038,2]
[388896460,1759481433408,-500.0,0.00018038,2]
[388896462,1759481433417,-500.0,0.00018038,2]
[388896464,1759481433426,-500.0,0.00018038,2]
[388896466,1759481433436,-3029.17,0.00018038,2]
[388896468,1759481433447,-500.0,0.00018038,2]
[388896470,1759481433456,-500.0,0.00018038,2]
[388896472,1759481433465,-500.0,0.00018038,2]
[388896474,1759481433475,-500.0,0.00018038,2]
[388896476,1759481433484,-500.0,0.00018038,2]
[388896478,1759481433493,-500.0,0.00018038,2]
[388896480,1759481433502,-500.0,0.00018038,2]
[388896482,1759481433512,-587.08,0.00018038,2]
[388896484,1759481433521,-500.0,0.00018038,2]
[388896486,1759481433530,-561.04146903,0.00018038,2]
[388896488,1759481433540,-2081.25,0.00018038,2]
[388896490,1759481433549,-815.29,0.00018038,2]
[388896492,1759481433559,-500.0,0.00018038,2]
[388896494,1759481433568,-500.0,0.00018038,2]
[388896496,1759481433578,-500.0,0.00018038,2]
[388896498,1759481433587,-500.0,0.00018038,2]
[388896500,1759481433597,-500.0,0.00018038,2]
[388896502,1759481433606,-578.67,0.00018038,2]
[388896504,1759481433615,-570.45,0.00018038,2]
[388896506,1759481433625,-749.98,0.00018038,2]
[388896508,1759481433634,-500.0,0.00018038,2]
[388896510,1759481433644,-883.85,0.00018038,2]
[388896512,1759481433653,-500.0,0.00018038,2]
[388896514,1759481433663,-1975.04,0.00018038,2]
[388896516,1759481433673,-500.0,0.00018038,2]
[388896518,1759481433682,-500.0,0.00018038,2]
[388896520,1759481433691,-500.0,0.00018038,2]
[388896522,1759481433701,-500.0,0.00018038,2]
[388896524,1759481433710,-500.0,0.00018038,2]
[388896526,1759481433720,-933.17,0.00018038,2]
[388896528,1759481433729,-500.0,0.00018038,2]
[388896530,1759481433739,-641.63,0.00018038,2]
[388896532,1759481433748,-960.32,0.00018038,2]
[388896533,1759481433758,-500.0,0.00018038,2]
[388896535,1759481433768,-500.0,0.00018038,2]
[388896537,1759481433778,-995.67,0.00018038,2]
[388896539,1759481433788,-500.0,0.00018038,2]
[388896541,1759481433798,-500.0,0.00018038,2]
[388896543,1759481433808,-664.08,0.00018038,2]
[388896545,1759481433818,-502.15,0.00018038,2]
[388896546,1759481433827,-500.0,0.00018038,2]
[388896548,1759481433841,-500.0,0.00018038,2]
[388896549,1759481433851,-500.0,0.00018038,2]
[388896550,1759481433865,-500.0,0.00018038,2]
[388896551,1759481433876,-757.33,0.00018038,2]
[388896553,1759481433886,-1029.97,0.00018038,2]
[388896554,1759481433896,-500.0,0.00018038,2]
[388896555,1759481433906,-500.0,0.00018038,2]
[388896556,1759481433916,-500.0,0.00018038,2]
[388896557,1759481433926,-162.22,0.00018038,2]
[388896558,1759481433936,-502.29400012,0.00018038,2]
[388896559,1759481433946,-500.0,0.00018038,2]
[388896560,1759481433955,-780.3,0.00018038,2]
[388896561,1759481433965,-500.0,0.00018038,2]
[388896562,1759481433974,-765.96,0.00018038,2]
[388896563,1759481433984,-500.0,0.00018038,2]
[388896564,1759481433993,-1860.23,0.00018038,2]
[388896565,1759481434003,-1950.2,0.00018038,2]
[388896566,1759481434013,-1192.5,0.00018038,2]
[388896568,1759481434023,-632.13,0.00018038,2]
[388896570,1759481434033,-993.9,0.00018038,2]
[388896571,1759481434042,-823.83,0.00018038,2]
[388896572,1759481434053,-64.32493884,0.00018038,2]
[388896573,1759481434069,-169.23641804,0.00018038,2]
[388896574,1759481434078,-500.0,0.00018038,2]
[388896575,1759481434089,-147.24169196,0.00018038,2]
[388896576,1759481434390,500.0,0.00018035,2]
[388896577,1759481434505,250.0,0.00018027,2]
[388896578,1759481434688,250.0,0.00018027,2]
[388896579,1759481434801,250.0,0.00018027,2]
[388896580,1759481435144,357.71855151,0.00018027,2]
[388896581,1759481435935,904.7,0.00018035,2]
[388896582,1759481436570,539.13,0.00018035,2]
[388896583,1759481437288,500.0,0.00018035,2]
[388896612,1759481438063,227.0,0.00027945,120]
[388896628,1759481438211,1462.15950602,0.00017569,2]
[388896631,1759481438224,-360.94830804,0.00018038,2]
[388896633,1759481438234,-199.27255364,0.00018038,2]
[388896635,1759481438246,-3638.77795536,0.00018038,2]
[388896637,1759481438255,-500.0,0.00018038,2]
[388896639,1759481438266,-1115.35,0.00018038,2]
[388896641,1759481438276,-500.0,0.00018038,2]
[388896643,1759481438286,-500.0,0.00018038,2]
[388896645,1759481438296,-500.0,0.00018038,2]
[388896647,1759481438307,-614.03,0.00018038,2]
[388896649,1759481438317,-500.0,0.00018038,2]
[388896651,1759481438327,-500.0,0.00018038,2]
[388896653,1759481438336,-500.0,0.00018038,2]
[388896655,1759481438345,-500.0,0.00018038,2]
[388896657,1759481438355,-500.0,0.00018038,2]
[388896659,1759481438365,-618.99,0.00018038,2]
[388896661,1759481438374,-500.0,0.00018038,2]
[388896663,1759481438385,-500.0,0.00018038,2]
[388896665,1759481438394,-500.0,0.00018038,2]
[388896668,1759481438404,-979.88,0.00018038,2]
[388896669,1759481438414,-500.0,0.00018038,2]
[388896671,1759481438423,-1871.08,0.00018038,2]
[388896674,1759481438433,-768.7,0.00018038,2]
[388896676,1759481438443,-877.2,0.00018038,2]
[388896677,1759481438452,-500.0,0.00018038,2]
[388896679,1759481438462,-500.0,0.00018038,2]
[388896682,1759481438472,-543.98,0.00018038,2]
[388896684,1759481438482,-500.0,0.00018038,2]
[388896686,1759481438491,-500.0,0.00018038,2]
[388896688,1759481438502,-6623.45013848,0.00018038,2]
[388896691,1759481438522,-2793.47099713,0.00018038,2]
[388896800,1759481440545,500.0,0.00018035,2]
[388896895,1759481441910,587.17,0.00018035,2]
[388896910,1759481443986,1142.89,0.00018035,2]
[388896911,1759481444568,117.39971997,0.00018035,2]
[388896912,1759481444591,382.60028003,0.00018035,2]
[388896916,1759481445987,500.0,0.00018035,2]
[388896926,1759481449438,-556.21,0.00018036,2]
[388896927,1759481449450,-43.79,0.00018036,2]
[388896928,1759481449667,500.0,0.00018035,2]
[388896929,1759481450139,500.0,0.00018035,2]
[388896930,1759481450380,500.0,0.00018035,2]
[388896931,1759481452590,1702.31,0.00018035,2]
[388896932,1759481452715,500.0,0.00018035,2]
[388896933,1759481457585,1760.01,0.00018035,2]
[388896934,1759481458051,500.0,0.00018035,2]
[388896935,1759481459868,259.78472659,0.00027397,120]
[388896936,1759481459967,749.55,0.00018035,2]
[388896937,1759481460620,709.53,0.00018035,2]
[388896938,1759481461302,500.0,0.00018035,2]
[388896939,1759481464418,1196.00971997,0.00018035,2]
[388896940,1759481464442,2885.84028003,0.00018035,2]
[388896942,1759481466480,500.0,0.00018035,2]
[388896943,1759481467233,500.0,0.00018035,2]
[388896944,1759481468521,450.72982383,0.00018036,2]
[388896945,1759481472057,500.0,0.00018035,2]
[388896946,1759481474269,500.0,0.00018035,2]
[388896947,1759481477107,500.0,0.00018035,2]
[388896948,1759481482240,2984.01,0.00018035,2]
[388896949,1759481482685,336.89837382,0.00017938,2]
[388896950,1759481482812,644.78,0.00018035,2]
[388896951,1759481483641,197.75152232,0.00018035,2]
[388896952,1759481483664,659.48847768,0.00018035,2]
[388896954,1759481491344,500.0,0.00018035,2]
[388896956,1759481492131,500.0,0.00018035,2]
[388896958,1759481497407,500.0,0.00018035,2]
[388896959,1759481499582,500.0,0.00018035,2]
[388896960,1759481501633,571.98,0.00018035,2]
[388896962,1759481502690,500.0,0.00018035,2]
[388896963,1759481502941,3952.14,0.00018035,2]
[388896964,1759481507578,500.0,0.00018035,2]
[388896965,1759481507606,500.0,0.00018035,2]
[388896966,1759481507632,500.0,0.00018035,2]
[388896967,1759481507665,348.79770939,0.00018035,2]
[388896968,1759481507693,500.0,0.00018035,2]
[388896969,1759481507722,500.0,0.00018035,2]
[388896970,1759481507755,127.09229061,0.00018035,2]
[388896972,1759481522627,300.0,0.00018034,2]
[388896977,1759481551978,500.0,0.00018034,2]
[388896978,1759481552008,500.0,0.00018034,2]
[388896979,1759481552041,500.0,0.00018034,2]
[388896980,1759481552069,500.0,0.00018034,2]
[388896981,1759481552096,500.0,0.00018034,2]
[388896982,1759481552135,500.0,0.00018034,2]
[388896983,1759481552172,500.0,0.00018034,2]
[388896984,1759481552209,406.26239166,0.00018034,2]
[388896985,1759481552246,500.0,0.00018034,2]
[388896986,1759481552592,625.92877895,0.00018034,2]
[388896987,1759481552628,500.0,0.00018034,2]
[388896988,1759481552659,500.0,0.00018034,2]
[388896989,1759481552692,500.0,0.00018034,2]
[388896990,1759481552728,500.0,0.00018034,2]
[388896991,1759481552768,500.0,0.00018034,2]
[388896992,1759481552809,500.0,0.00018034,2]
[388896993,1759481552840,500.0,0.00018034,2]
[388896994,1759481552873,500.0,0.00018034,2]
[388896995,1759481552909,500.0,0.00018034,2]
[388896996,1759481552939,167.81882939,0.00018034,2]
[388896997,1759481552963,332.18117061,0.00018034,2]
[388896998,1759481552994,500.0,0.00018034,2]
[388896999,1759481553031,390.42642145,0.00018034,2]
[388897000,1759481553061,450.54474911,0.00018034,2]
[388897001,1759481553092,500.0,0.00018034,2]
[388897002,1759481553129,500.0,0.00018034,2]
[388897003,1759481553180,169.92208879,0.00018034,2]
[388897004,1759481553212,500.0,0.00018034,2]
[388897005,1759481553264,500.0,0.00018034,2]
[388897006,1759481553318,500.0,0.00018034,2]
[388897007,1759481553364,500.0,0.00018034,2]
[388897008,1759481555294,-500.0,0.00018035,2]
[388897009,1759481555642,-500.0,0.00018035,2]
[388897010,1759481555687,-500.0,0.00018035,2]
[388897011,1759481555715,-633.43,0.00018035,2]
[388897012,1759481555742,-500.0,0.00018035,2]
[388897013,1759481555770,-1128.18,0.00018035,2]
[388897014,1759481555798,-289.26581039,0.00018035,2]
[388897015,1759481555824,-500.0,0.00018035,2]
[388897016,1759481555852,-349.81837922,0.00018035,2]
[388897018,1759481557371,-198.62162078,0.00018035,2]
[388897019,1759481557399,-1371.07,0.00018035,2]
[388897020,1759481557427,-2518.96,0.00018035,2]
[388897021,1759481557454,-571.38,0.00018035,2]
[388897022,1759481561379,-1504.98,0.00018035,2]
[388897024,1759481564747,-3009.96,0.00018035,2]
[388897025,1759481565448,-3980.09,0.00018035,2]
[388897026,1759481565475,-601.78,0.00018035,2]
[388897027,1759481565503,-336.27,0.00018035,2]
[388897029,1759481569433,-163.73,0.00018035,2]
[388897030,1759481569461,-863.37,0.00018035,2]
[388897031,1759481569488,-500.0,0.00018035,2]
[388897032,1759481569516,-657.67,0.00018035,2]
[388897033,1759481569546,-1949.64,0.00018035,2]
[388897034,1759481569575,-500.0,0.00018035,2]
[388897035,1759481571487,-1089.4,0.00018035,2]
[388897036,1759481571516,-500.0,0.00018035,2]
[388897037,1759481571544,-500.0,0.00018035,2]
[388897038,1759481571572,-500.0,0.00018035,2]
[388897039,1759481571599,-986.23,0.00018035,2]
[388897040,1759481575570,-2848.75,0.00018035,2]
[388897041,1759481575598,-500.0,0.00018035,2]
[388897042,1759481575626,-500.0,0.00018035,2]
[388897043,1759481575654,-500.0,0.00018035,2]
[388897044,1759481575683,-84.95,0.00018035,2]
[388897045,1759481577571,5000.0,0.00018035,2]
[388897046,1759481579564,-1132.61,0.00018035,2]
[388897047,1759481579589,-1933.21,0.00018035,2]
[388897048,1759481579614,-500.0,0.00018035,2]
[388897049,1759481579639,-500.0,0.00018035,2]
[388897050,1759481579663,-500.0,0.00018035,2]
[388897051,1759481579689,-385.14137108,0.00018035,2]
[388897052,1759481582602,300.0,0.00018034,2]
[388897058,1759481618978,300.0,0.00028767,120]
[388897060,1759481621830,490.44277967,0.00017939,2]
[388897063,1759481643366,300.0,0.00018034,2]
[388897065,1759481657673,667.11,0.00018028,3]
[388897073,1759481678574,-98.08725784,0.00018035,2]
[388897074,1759481678602,-500.0,0.00018035,2]
[388897075,1759481678629,-2047.18,0.00018035,2]
[388897076,1759481678658,-500.0,0.00018035,2]
[388897077,1759481678693,-500.0,0.00018035,2]
[388897078,1759481678722,-959.02,0.00018035,2]
[388897079,1759481678750,-150.32548432,0.00018035,2]
[388897080,1759481678940,-490.78451568,0.00018035,2]
[388897081,1759481678970,-500.0,0.00018035,2]
[388897082,1759481679001,-1257.49,0.00018035,2]
[388897083,1759481679030,-733.44,0.00018035,2]
[388897084,1759481679060,-500.0,0.00018035,2]
[388897085,1759481679090,-588.87096864,0.00018035,2]
[388897086,1759481680584,-1858.83903136,0.00018035,2]
[388897087,1759481680615,-2788.29,0.00018035,2]
[388897088,1759481682630,-767.02,0.00018035,2]
[388897089,1759481682658,-488.4073342,0.00018035,2]
[388897090,1759481682687,-934.1,0.00018035,2]
[388897091,1759481682714,-248.61638432,0.00018035,2]
[388897092,1759481682742,-500.0,0.00018035,2]
[388897093,1759481682770,-1272.04,0.00018035,2]
[388897094,1759481682798,-500.0,0.00018035,2]
[388897095,1759481682825,-76.11256296,0.00018035,2]
[388897096,1759481682998,-427.41743704,0.00018035,2]
[388897097,1759481683208,-1043.96,0.00018035,2]
[388897098,1759481683237,-500.0,0.00018035,2]
[388897099,1759481683264,-500.0,0.00018035,2]
[388897100,1759481683291,-482.49186294,0.00018035,2]
[388897101,1759481683318,-1070.84,0.00018035,2]
[388897102,1759481683345,-500.0,0.00018035,2]
[388897103,1759481683372,-450.59140004,0.00018035,2]
[388897105,1759481690279,500.0,0.00027397,120]
[388897106,1759481690670,-49.40859996,0.00018035,2]
[388897107,1759481690697,-795.19,0.00018035,2]
[388897108,1759481690723,-500.0,0.00018035,2]
[388897109,1759481690750,-500.0,0.00018035,2]
[388897110,1759481690778,-500.0,0.00018035,2]
[388897111,1759481690805,-2313.41,0.00018035,2]
[388897112,1759481690832,-183.99280008,0.00018035,2]
[388897113,1759481691072,-316.00719992,0.00018035,2]
[388897114,1759481691100,-1543.65,0.00018035,2]
[388897115,1759481691127,-500.0,0.00018035,2]
[388897116,1759481691153,-500.0,0.00018035,2]
[388897117,1759481691181,-566.0,0.00018035,2]
[388897118,1759481691208,-758.59,0.00018035,2]
[388897119,1759481691236,-600.30560016,0.00018035,2]
[388897120,1759481692675,-430.90439984,0.00018035,2]
[388897121,1759481692704,-500.0,0.00018035,2]
[388897122,1759481692732,-500.0,0.00018035,2]
[388897123,1759481692760,-500.0,0.00018035,2]
[388897124,1759481692787,-500.0,0.00018035,2]
[388897125,1759481692814,-1923.84,0.00018035,2]
[388897126,1759481692843,-436.82120032,0.00018035,2]
[388897129,1759481702146,300.0,0.00018034,2]
[388897130,1759481705151,1200.0,0.00018034,2]
[388897131,1759481707715,500.0,0.00028767,120]
[388897133,1759481723200,321.15,0.00028767,120]
[388897134,1759481724114,264.05582014,0.00028767,120]
[388897136,1759481729249,500.0,0.00018034,2]
[388897139,1759481744717,1627.81,0.00018034,2]
[388897140,1759481754514,341.7669934,0.00017935,2]
[388897142,1759481762345,300.0,0.00018034,2]
[388897144,1759481780911,333.56,0.00018028,3]
[388897145,1759481788967,500.0,0.00018034,2]
[388897147,1759481799449,3439.32022693,0.00017938,2]
[388897148,1759481799472,10000.01,0.00017938,2]
[388897149,1759481799495,7210.13708553,0.00017938,2]
[388897150,1759481800908,221.37922346,0.00018034,2]
[388897154,1759481809483,177.02406313,0.00018034,2]
[388897155,1759481809822,702.88,0.00018034,2]
[388897157,1759481813799,-416.87879968,0.00018035,2]
[388897158,1759481813827,-751.91,0.00018035,2]
[388897159,1759481813855,-1697.25,0.00018035,2]
[388897160,1759481813882,-500.0,0.00018035,2]
[388897161,1759481813909,-500.0,0.00018035,2]
[388897162,1759481813938,-779.91,0.00018035,2]
[388897163,1759481813971,-208.11240064,0.00018035,2]
[388897165,1759481814485,454.50450794,0.00018034,2]
[388897166,1759481814624,219.08350795,0.00018034,2]
[388897168,1759481820978,1015.00161199,0.00018034,2]
[388897169,1759481821845,-275.08838801,0.00018034,2]
[388897170,1759481821872,-291.88759936,0.00018035,2]
[388897171,1759481821900,-2353.81,0.00018035,2]
[388897172,1759481821928,-500.0,0.00018035,2]
[388897173,1759481821961,-830.49802526,0.00018035,2]
[388897174,1759481823955,-697.95,0.00018028,3]
[388897185,1759481900685,3000.0,0.00033019,120]
[388897186,1759481904247,166.78,0.00018025,3]
[388897187,1759481920070,1462.15950602,0.00017682,2]
[388897189,1759481963090,607.20301421,0.00017935,2]
[388897190,1759481965321,607.20301418,0.00018004,2]
[388897191,1759482002602,500.0,0.00027397,120]
[388897192,1759482026119,390.29487441,0.00017935,2]
[388897193,1759482027255,974.36,0.00018025,3]
[388897194,1759482029719,12000.0,0.00033019,60]
[388897195,1759482032862,-500.0,0.00018033,2]
[388897196,1759482032895,-300.0,0.00018033,2]
[388897197,1759482032924,-300.0,0.00018033,2]
[388897198,1759482032956,-300.0,0.00018033,2]
[388897199,1759482032994,-1200.0,0.00018033,2]
[388897200,1759482033030,-500.0,0.00018034,2]
[388897201,1759482033062,-197.24921949,0.00018034,2]
[388897202,1759482033094,-500.0,0.00018034,2]
[388897203,1759482033126,-432.49549206,0.00018034,2]
[388897204,1759482033155,-340.5205769,0.00018034,2]
[388897205,1759482036893,-859.4794231,0.00018034,2]
[388897206,1759482036923,-569.7,0.00018034,2]
[388897207,1759482036953,-500.0,0.00018034,2]
[388897208,1759482036984,-2229.8811538,0.00018034,2]
[388897209,1759482040946,-500.0,0.00018033,2]
[388897210,1759482040976,-1681.8888462,0.00018034,2]
[388897211,1759482041200,-500.0,0.00018034,2]
[388897212,1759482041230,-2288.5623076,0.00018034,2]
[388897213,1759482044993,-59.1076924,0.00018034,2]
[388897214,1759482045027,-500.0,0.00018034,2]
[388897215,1759482045055,-922.84,0.00018034,2]
[388897216,1759482045084,-500.0,0.00018034,2]
[388897217,1759482045113,-500.0,0.00018034,2]
[388897218,1759482045141,-500.0,0.00018034,2]
[388897219,1759482045168,-695.72,0.00018034,2]
[388897220,1759482045195,-500.0,0.00018034,2]
[388897221,1759482045222,-348.14752997,0.00018034,2]
[388897222,1759482045249,-460.55915559,0.00018034,2]
[388897223,1759482050442,484.88,0.00018025,3]
[388897224,1759482061056,242.44,0.00018028,3]
[388897225,1759482071676,727.34,0.00018028,3]
[388897226,1759482082388,-500.0,0.00018033,2]
[388897227,1759482082418,-500.0,0.00018033,2]
[388897228,1759482082449,-300.0,0.00018033,2]
[388897229,1759482082478,-1163.01,0.00018033,2]
[388897230,1759482082507,-486.70672536,0.00018033,2]
[388897231,1759482082535,-760.02,0.00018033,2]
[388897232,1759482082561,-501.19326554,0.00018033,2]
[388897233,1759482084811,-9433.48434351,0.00018033,2]
[388897234,1759482084857,-4447.07647141,0.00018033,2]
[388897235,1759482084882,-1105.85705718,0.00018033,2]
[388897236,1759482086410,-502.70447054,0.00018033,2]
[388897237,1759482086439,-500.0,0.00018033,2]
[388897238,1759482086495,-7994.60105892,0.00018034,2]
[388897239,1759482086543,-10000.01,0.00018034,2]
[388897240,1759482086744,-10000.01,0.00018034,2]
[388897241,1759482092443,-10000.01,0.00018034,2]
[388897242,1759482092551,-10000.01,0.00018034,2]
[388897244,1759482109764,300.0,0.00033019,60]
[388897245,1759482119903,600.0,0.00017902,2]
[388897246,1759482120715,-483.31527418,0.00018033,2]
[388897247,1759482120999,-500.0,0.00018033,2]
[388897248,1759482121030,-1304.43,0.00018033,2]
[388897249,1759482121064,-487.85308826,0.00018033,2]
[388897250,1759482121093,-503.09501789,0.00018033,2]
[388897251,1759482121124,-500.0,0.00018033,2]
[388897252,1759482121152,-437.26429826,0.00018034,2]
[388897253,1759482121430,-968.09464282,0.00018034,2]
[388897254,1759482124868,-600.0,0.00018034,2]
[388897255,1759482124895,-27.26124408,0.00018034,2]
[388897256,1759482124922,-484.79056308,0.00018034,2]
[388897257,1759482124949,-500.0,0.00018034,2]
[388897258,1759482124977,-1381.7,0.00018034,2]
[388897259,1759482125005,-588.02711465,0.00018034,2]
[388897260,1759482125040,-1081.17,0.00018034,2]
[388897261,1759482125069,-13.17215638,0.00018034,2]
[388897262,1759482125214,-647.76784362,0.00018034,2]
[388897263,1759482126921,-500.0,0.00018034,2]
[388897264,1759482126947,-481.67383059,0.00018034,2]
[388897265,1759482126975,-867.34,0.00018034,2]
[388897266,1759482127002,-410.33692615,0.00018034,2]
[388897267,1759482127030,-500.0,0.00018034,2]
[388897268,1759482127066,-1961.88,0.00018034,2]
[388897269,1759482127105,-73.22875542,0.00018034,2]
[388897270,1759482127229,-411.09097568,0.00018034,2]
[388897271,1759482128792,-500.0,0.00018034,2]
[388897272,1759482128823,-618.29682177,0.00018034,2]
[388897273,1759482128852,-614.28266231,0.00018034,2]
[388897274,1759482128881,-500.0,0.00018034,2]
[388897275,1759482128911,-773.75,0.00018034,2]
[388897276,1759482128941,-936.69,0.00018034,2]
[388897277,1759482128970,-543.22,0.00018034,2]
[388897278,1759482128999,-500.0,0.00018034,2]
[388897279,1759482129325,-27.53103184,0.00018034,2]
[388897280,1759482134796,-502.23172842,0.00018033,2]
[388897281,1759482134824,-472.46896816,0.00018034,2]
[388897282,1759482134853,-572.11,0.00018034,2]
[388897283,1759482134880,-500.0,0.00018034,2]
[388897284,1759482134910,-210.57646221,0.00018034,2]
[388897285,1759482134937,-500.0,0.00018034,2]
[388897286,1759482134965,-639.51450767,0.00018034,2]
[388897287,1759482134993,-575.40710743,0.00018034,2]
[388897288,1759482135020,-484.55797509,0.00018034,2]
[388897289,1759482135054,-528.18650204,0.00018034,2]
[388897290,1759482135224,-29.90349796,0.00018034,2]
[388897291,1759482138280,265.01747833,0.00018032,2]
[388897292,1759482141335,1200.0,0.00018033,2]
[388897293,1759482143536,601.92,0.00018028,3]
[388897294,1759482144550,503.45989033,0.00018033,2]
[388897295,1759482157941,500.0,0.00018033,2]
[388897296,1759482163748,500.0,0.00018033,2]
[388897297,1759482166229,502.09318712,0.00018033,2]
[388897298,1759482168569,292.56200047,0.00018033,2]
[388897299,1759482172604,500.0,0.00018033,2]
[388897300,1759482181486,300.90188346,0.00018033,2]
[388897302,1759482182583,300.0,0.00018033,2]
[388897304,1759482183601,500.0,0.00018033,2]
[388897305,1759482183728,500.0,0.00018033,2]
[388897306,1759482185823,500.0,0.00018033,2]
[388897307,1759482188932,324.62413102,0.00018033,2]
[388897308,1759482196152,500.0,0.00018033,2]
[388897309,1759482204802,500.0,0.00018033,2]
[388897310,1759482207874,1709.43142927,0.00018033,2]
[388897311,1759482207897,2178.67857073,0.00018033,2]
[388897312,1759482208639,500.0,0.00018033,2]
[388897313,1759482227732,500.0,0.00018033,2]
[388897314,1759482227759,500.0,0.00018033,2]
[388897315,1759482230250,491.90126527,0.00018033,2]
[388897316,1759482230418,976.39,0.00018033,2]
[388897317,1759482232379,500.0,0.00018033,2]
[388897318,1759482238926,500.0,0.00018033,2]
[388897319,1759482243529,300.0,0.00018033,2]
[388897320,1759482244925,500.0,0.00018033,2]
[388897321,1759482257076,500.0,0.00018033,2]
[388897322,1759482259593,513.59,0.00018033,2]
[388897323,1759482271353,500.0,0.00018033,2]
[388897324,1759482271381,216.72719435,0.00018033,2]
[388897325,1759482271410,296.65800987,0.00018033,2]
[388897326,1759482271447,180.65875322,0.00018033,2]
[388897327,1759482271474,210.04738016,0.00018033,2]
[388897328,1759482273371,635.3588264,0.00017935,2]
[388897329,1759482273393,10000.01,0.00017935,2]
[388897330,1759482273415,9400.01,0.00017935,2]
[388897331,1759482273447,65.35284771,0.00017935,2]
[388897333,1759482280106,-1395.39,0.00018033,2]
[388897334,1759482280133,-500.0,0.00018033,2]
[388897335,1759482282436,502.20625336,0.00018033,2]
[388897336,1759482289200,664.21,0.00018033,2]
[388897337,1759482289321,500.0,0.00018033,2]
[388897338,1759482297488,406.71370008,0.00017934,2]
[388897339,1759482301366,300.0,0.00018033,2]
[388897340,1759482302055,300.0,0.00018033,2]
[388897341,1759482302925,192.0,0.00018033,2]
[388897342,1759482303028,426.92643905,0.00017935,2]
[388897343,1759482303138,300.0,0.00018033,2]
[388897345,1759482304968,426.92643904,0.00018004,2]
[388897346,1759482305717,1200.0,0.00018033,2]
[388897347,1759482307776,500.0,0.00018033,2]
[388897350,1759482312304,490.24716847,0.00018033,2]
[388897351,1759482312327,1508.24283153,0.00018033,2]
[388897352,1759482314704,500.0,0.00027397,120]
[388897354,1759482318728,500.0,0.00018033,2]
[388897357,1759482332410,500.0,0.00018033,2]
[388897358,1759482335111,179.0,0.00027945,120]
[388897359,1759482338506,780.32,0.00018033,2]
[388897360,1759482347650,941.21,0.00018033,2]
[388897362,1759482355766,482.52863929,0.00018033,2]
[388897364,1759482362460,300.0,0.00018033,2]
[388897365,1759482363440,500.0,0.00018033,2]